lending/lending_fUSD_20250418
["ID","MTS","AMOUNT","RATE_DAILY","PERIOD"]
[358359277,1744987842989,-31.01682509,0.00030054,5]
[358359282,1744987844277,-439.79106713,0.00030054,5]
[358359283,1744987844287,-361.03330573,0.00030054,5]
[358359284,1744987844299,-138.96669427,0.00030054,5]
[358359285,1744987844308,-182.84161093,0.00030054,5]
[358359286,1744987844320,-317.15838907,0.00030054,5]
[358359287,1744987844330,-162.97523404,0.000301,5]
[358359288,1744987844340,-240.45180467,0.00030137,2]
[358359289,1744987844352,-369.54819533,0.00030137,2]
[358359290,1744987844361,-124.2968746,0.00030522,2]
[358359291,1744987844373,-559.00740243,0.00030522,2]
[358359292,1744987844393,-2916.91990655,0.00030522,2]
[358359293,1744987844403,-6349.40382757,0.00030602,2]
[358359294,1744987844412,-19048.2114827,0.00030612,2]
[358359295,1744987844422,-32464.86419153,0.00030622,2]
[358359296,1744987844433,-6349.40382757,0.00030652,2]
[358359297,1744987844442,-600.0,0.00031,2]
[358359298,1744987844452,-227.57970814,0.00031102,5]
[358359299,1744987844461,-1000.0,0.00031102,5]
[358359300,1744987844471,-1000.0,0.00031102,5]
[358359301,1744987844481,-1150.66,0.00031522,2]
[358359302,1744987844490,-823.0,0.00031537,3]
[358359303,1744987844499,-162.46,0.00032315,30]
[358359304,1744987844509,-6349.40382757,0.000325,2]
[358359305,1744987844519,-823.0,0.0003252,3]
[358359306,1744987844529,-1000.0,0.00032773,2]
[358359307,1744987844538,-182.68,0.00032877,30]
[358359308,1744987844547,-1500.0,0.00032877,120]
[358359309,1744987844557,-600.70117191,0.000329,2]
[358359310,1744987844566,-650.0,0.00033,2]
[358359311,1744987844575,-200.0,0.00033151,2]
[358359312,1744987844585,-3632.71863186,0.00033776,2]
[358359313,1744987844703,-883.48590846,0.00033776,2]
[358359327,1744987845829,-1833.19928725,0.00033776,2]
[358359330,1744987845839,-1150.66,0.00033786,2]
[358359333,1744987845848,-2436.73836949,0.00033786,2]
[358359352,1744987845979,-1023.05,0.00033786,2]
[358359354,1744987845991,-140.43581403,0.00033786,2]
[358359356,1744987846001,-250.0,0.00034135,2]
[358359358,1744987846010,-78.25303906,0.00034173,3]
[358359361,1744987846022,-1007.74696094,0.00034173,3]
[358359363,1744987846032,-2178.81980072,0.00034386,2]
[358359365,1744987846048,-4170.58402685,0.00034386,2]
[358359367,1744987846057,-161.07,0.00034488,120]
[358359368,1744987846067,-150.0,0.00034548,10]
[358359369,1744987846077,-700.0,0.00035,2]
[358359370,1744987846086,-732.46701242,0.00035234,5]
[358359371,1744987846096,-501.35404734,0.0003532,5]
[358359372,1744987846105,-503.89381108,0.00035369,5]
[358359373,1744987846114,-1000.0,0.00035392,5]
[358359374,1744987846124,-1000.0,0.00035392,5]
[358359375,1744987846134,-1023.22472044,0.00035392,5]
[358359376,1744987846143,-500.0,0.00035392,5]
[358359377,1744987846152,-1000.0,0.00035392,5]
[358359378,1744987846162,-1000.0,0.00035392,5]
[358359379,1744987846172,-1016.48649534,0.00035392,5]
[358359380,1744987846181,-1000.0,0.00035392,5]
[358359381,1744987846191,-1752.87573952,0.00035523,2]
[358359382,1744987846203,-738.81570275,0.00035523,2]
[358359383,1744987846215,-3857.7123853,0.00035523,2]
[358359384,1744987846225,-1000.0,0.00035533,5]
[358359385,1744987846235,-282.49419878,0.00035533,5]
[358359386,1744987846248,-717.50580122,0.00035533,5]
[358359387,1744987846257,-1000.0,0.00035533,5]
[358359388,1744987846267,-1152.0,0.000356,3]
[358359389,1744987846276,-766.20729456,0.00035809,2]
[358359390,1744987846288,-1064.8319108,0.00035809,2]
[358359391,1744987846300,-1231.12079464,0.00035809,2]
[358359392,1744987846310,-1015.72579459,0.0003605,2]
[358359406,1744988051573,151.56,0.00027425,30]
[358359424,1744988163526,481.64096098,0.00048023,30]
[358359425,1744988189257,200.0,0.00048023,30]
[358359426,1744988189766,200.0,0.00048023,30]
[358359427,1744988190199,200.0,0.00048023,30]
[358359428,1744988190564,353.469999,0.00048023,30]
[358359430,1744988213546,250.0,0.00017,2]
[358359431,1744988214652,300.0,0.00019,2]
[358359457,1744988709858,-300.0,0.00020999,2]
[358359458,1744988709885,-350.0,0.00021,2]
[358359459,1744988709912,-500.0,0.00021,2]
[358359460,1744988709939,-500.0,0.00021,2]
[358359461,1744988709967,-500.0,0.00021,2]
[358359462,1744988709993,-500.0,0.00021,2]
[358359463,1744988710020,-401.97077942,0.00021,2]
[358359468,1744988827107,-1678.73706,0.000226,2]
[358359469,1744988827128,-250.0,0.00022738,2]
[358359470,1744988827150,-250.0,0.00022871,2]
[358359471,1744988827170,-1815.88254575,0.00022877,2]
[358359472,1744988827193,-894.80778138,0.000229,2]
[358359476,1744988840088,-418.95327468,0.00022977,2]
[358359477,1744988840110,-400.0,0.00023,2]
[358359478,1744988840133,-155.99591815,0.0002486,2]
[358359479,1744988847130,-94.00408185,0.0002486,2]
[358359480,1744988847153,-450.0,0.00025,2]
[358359481,1744988847176,-500.0,0.00027,2]
[358359482,1744988847204,-550.0,0.00029,2]
[358359483,1744988847226,-150.0,0.00029396,5]
[358359484,1744988847253,-300.0,0.00029653,2]
[358359485,1744988847276,-1263.531836,0.00030845,2]
[358359486,1744988847300,-600.0,0.00031,2]
[358359487,1744988847323,-151.56,0.00032315,30]
[358359488,1744988847346,-420.0,0.00032384,3]
[358359489,1744988847369,-182.68,0.00032877,30]
[358359490,1744988847391,-650.0,0.00033,2]
[358359491,1744988847413,-700.0,0.00035,2]
[358359492,1744988847437,-587.0,0.00035365,3]
[358359493,1744988847460,-295.71,0.00037171,2]
[358359494,1744988847481,-550.0,0.00037171,2]
[358359495,1744988847504,-151.56,0.00037205,30]
[358359496,1744988847526,-997.23,0.00037333,2]
[358359497,1744988847547,-518.64,0.00037493,2]
[358359498,1744988847570,-161.07,0.00037623,120]
[358359499,1744988847593,-845.44,0.00038071,2]
[358359500,1744988847616,-735.54480294,0.00038164,2]
[358359501,1744988849127,-264.45519706,0.00038164,2]
[358359502,1744988849149,-513.02145909,0.00038444,120]
[358359503,1744988849170,-152.88,0.00038444,2]
[358359504,1744988849194,-823.0,0.00038622,5]
[358359505,1744988849216,-150.0,0.00038954,2]
[358359506,1744988849241,-167.61,0.0003915,120]
[358359507,1744988849268,-458.52124852,0.00039153,2]
[358359511,1744988964160,-250.0,0.00034404,2]
[358359512,1744988964187,-250.0,0.00036778,2]
[358359513,1744988964214,-250.0,0.00037844,2]
[358359514,1744988964241,-400.0,0.00039152,5]
[358359515,1744988964270,-400.0,0.00039152,5]
[358359516,1744988964297,-2976.536504,0.00039153,2]
[358359527,1744989031994,-372.96495943,0.00039053,2]
[358359528,1744989032022,-87.57242275,0.00039053,2]
[358359529,1744989032032,-250.0,0.00039103,2]
[358359530,1744989032042,-400.0,0.00039152,5]
[358359531,1744989032051,-400.0,0.00039152,5]
[358359532,1744989032060,-2392.29924635,0.00039153,2]
[358359534,1744989032075,-18072.64300113,0.00039153,2]
[358359535,1744989032084,-460.53738218,0.00039307,2]
[358359536,1744989032094,-266.09489563,0.00039406,2]
[358359538,1744989032103,-700.0,0.00039702,2]
[358359539,1744989032113,-2775.67749945,0.00039969,2]
[358359544,1744989032346,-350.0,0.00039969,2]
[358359546,1744989032357,-458.53227146,0.00039969,2]
[358359548,1744989032366,-3088.067,0.00039978,56]
[358359550,1744989032375,-2623.28321489,0.00039979,2]
[358359552,1744989032387,-805.851417,0.00039979,2]
[358359554,1744989032401,-1284.89999991,0.00039979,2]
[358359558,1744989032432,-1496.47990283,0.00039979,2]
[358359561,1744989032447,-2686.01008024,0.00039979,2]
[358359563,1744989032459,-411.64114999,0.00039979,2]
[358359566,1744989032472,-636.84170514,0.00039979,2]
[358359627,1744989038190,-5441.49943164,0.00039979,2]
[358359628,1744989038222,-619.24477862,0.00039979,2]
[358359629,1744989038234,-1217.34199453,0.00039979,2]
[358359630,1744989038255,-1942.41632521,0.00039979,2]
[358359631,1744989038267,-8500.95,0.00039979,2]
[358359632,1744989038276,-499.99,0.00039979,2]
[358359633,1744989038286,-5916.93704971,0.00039979,2]
[358359634,1744989038464,-1818.12295029,0.00039979,2]
[358359635,1744989038473,-233.85482563,0.00039979,2]
[358359636,1744989038565,-116.07517437,0.00039979,2]
[358359637,1744989038575,-164.97903716,0.00039979,30]
[358359677,1744989040342,-452.2158223,0.00039979,30]
[358359678,1744989040717,-867.45514054,0.00039979,30]
[358359679,1744989040727,-2241.81,0.00039979,2]
[358359680,1744989040737,-150.99,0.00039979,30]
[358359681,1744989040747,-323.95463037,0.00039979,30]
[358359682,1744989040758,-161.46536963,0.00039979,30]
[358359683,1744989040768,-249.97,0.00039988,2]
[358359685,1744989040779,-150.99,0.00039988,2]
[358359686,1744989040789,-150.0,0.00039995,2]
[358359687,1744989040799,-1828.30463037,0.0004,2]
[358359688,1744989040810,-471.69536566,0.0004,2]
[358359689,1744989040820,-286.65,0.00040003,2]
[358359690,1744989040829,-1241.65463434,0.00040003,2]
[358359691,1744989040841,-882.02536566,0.00040003,2]
[358359692,1744989040851,-163.33,0.00040017,2]
[358359693,1744989040860,-130.06720422,0.00040081,2]
[358359705,1744989043081,-119.93279578,0.00040081,2]
[358359706,1744989043090,-1000.0,0.00040166,2]
[358359708,1744989043100,-150.0,0.00040179,2]
[358359709,1744989043109,-52.6130476,0.00040334,2]
[358359710,1744989044211,-792.8269524,0.00040334,2]
[358359711,1744989044220,-150.0,0.00041036,2]
[358359712,1744989044230,-150.0,0.00041096,10]
[358359713,1744989044239,-649.0,0.00041096,30]
[358359714,1744989044248,-200.0,0.000416,15]
[358359715,1744989044260,-152.0,0.00041644,10]
[358359716,1744989044270,-500.0,0.000417,15]
[358359717,1744989044280,-500.0,0.00041799,5]
[358359718,1744989044290,-124.3465486,0.000418,15]
[358359719,1744989044302,-575.6534514,0.000418,15]
[358359720,1744989044313,-867.06825137,0.00041889,6]
[358359721,1744989044323,-160.93902893,0.0004189,28]
[358359722,1744989044332,-506.73518608,0.00041899,56]
[358359723,1744989044342,-690.14076586,0.00041899,15]
[358359724,1744989044354,-1177.74616152,0.00041899,15]
[358359725,1744989044363,-867.06825136,0.000419,6]
[358359726,1744989044373,-412.02256031,0.000419,5]
[358359727,1744989044383,-298.09452988,0.000419,16]
[358359728,1744989044391,-1000.0,0.000419,15]
[358359729,1744989044401,-2658.95581054,0.000419,18]
[358359730,1744989044411,-1207.04601478,0.000419,2]
[358359731,1744989044420,-500.0,0.00041973,10]
[358359732,1744989044429,-500.0,0.00041973,10]
[358359733,1744989044439,-500.0,0.00041973,10]
[358359734,1744989044574,-247.04209957,0.00041989,31]
[358359735,1744989044653,-187.32678716,0.00041989,31]
[358359736,1744989044663,-512.16020916,0.00041989,31]
[358359737,1744989044674,-152.9465044,0.00041989,31]
[358359738,1744989044684,-512.16020916,0.00041989,31]
[358359739,1744989044694,-512.16020916,0.00041989,31]
[358359740,1744989044704,-512.16020916,0.00041989,31]
[358359741,1744989044713,-512.16020916,0.00041989,31]
[358359742,1744989044723,-512.16020916,0.00041989,31]
[358359743,1744989044732,-512.16020916,0.00041989,31]
[358359744,1744989044742,-512.16020916,0.00041989,31]
[358359745,1744989044752,-512.16020916,0.00041989,31]
[358359746,1744989044761,-512.16020916,0.00041989,31]
[358359747,1744989044771,-512.16020916,0.00041989,31]
[358359748,1744989044781,-512.16020916,0.00041989,31]
[358359749,1744989044790,-512.16020916,0.00041989,31]
[358359750,1744989044801,-512.16020916,0.00041989,31]
[358359751,1744989044810,-600.00781914,0.00041989,31]
[358359752,1744989044819,-600.00781914,0.00041989,31]
[358359753,1744989044828,-600.00781914,0.00041989,31]
[358359754,1744989044838,-600.00781914,0.00041989,31]
[358359755,1744989044848,-600.00781914,0.00041989,31]
[358359756,1744989044857,-600.00781914,0.00041989,31]
[358359757,1744989044867,-600.00781914,0.00041989,31]
[358359758,1744989044877,-600.00781914,0.00041989,31]
[358359759,1744989044887,-600.00781914,0.00041989,31]
[358359760,1744989044896,-600.00781914,0.00041989,31]
[358359761,1744989044906,-600.00781914,0.00041989,31]
[358359762,1744989044915,-888.39867421,0.00041989,31]
[358359763,1744989044924,-5729.51484661,0.0004199,3]
[358359768,1744989046250,-211666.49083139,0.0004199,3]
[358359769,1744989046260,-178.20197515,0.0004199,7]
[358359770,1744989046273,-150.51,0.0004199,2]
[358359771,1744989046283,-150.51,0.0004199,2]
[358359772,1744989046293,-150.51,0.0004199,2]
[358359773,1744989046303,-150.51,0.0004199,2]
[358359774,1744989046314,-150.51,0.0004199,2]
[358359775,1744989046324,-150.51,0.0004199,2]
[358359776,1744989046333,-150.51,0.0004199,2]
[358359777,1744989046344,-150.51,0.0004199,2]
[358359778,1744989046354,-150.51,0.0004199,2]
[358359779,1744989046363,-150.51,0.0004199,2]
[358359780,1744989046373,-300.0,0.00041999,30]
[358359781,1744989046382,-150.98567319,0.00041999,30]
[358359782,1744989046392,-500.0,0.00041999,30]
[358359783,1744989046402,-500.0,0.00041999,30]
[358359784,1744989046412,-2022.03398384,0.00041999,2]
[358359785,1744989046421,-290973.18753634,0.00042,2]
[358359786,1744989046490,-243.66751398,0.00042,2]
[358359787,1744989058367,151.0,0.00033023,2]
[358359788,1744989058820,202.45,0.00033023,2]
[358359794,1744989141758,200.0,0.00048022,30]
[358359808,1744989353635,1000.0,0.00048022,30]
[358359809,1744989354207,1000.0,0.00048022,30]
[358359810,1744989355223,1000.0,0.00048022,30]
[358359811,1744989355794,1000.0,0.00048022,30]
[358359812,1744989356558,1000.0,0.00048022,30]
[358359813,1744989357572,1000.0,0.00048022,30]
[358359814,1744989358151,1000.0,0.00048022,30]
[358359815,1744989358740,1000.0,0.00048022,30]
[358359816,1744989359753,1000.0,0.00048022,30]
[358359817,1744989360512,1000.0,0.00048022,30]
[358359818,1744989361077,1000.0,0.00048022,30]
[358359819,1744989361652,1000.0,0.00048022,30]
[358359820,1744989362218,1000.0,0.00048022,30]
[358359821,1744989362784,1000.0,0.00048022,30]
[358359822,1744989363358,1000.0,0.00048022,30]
[358359823,1744989364365,1000.0,0.00048022,30]
[358359824,1744989365091,1000.0,0.00048022,30]
[358359825,1744989365662,1000.0,0.00048022,30]
[358359826,1744989366334,1000.0,0.00048022,30]
[358359827,1744989366899,1000.0,0.00048022,30]
[358359828,1744989367474,1000.0,0.00048022,30]
[358359829,1744989368430,1000.0,0.00048022,30]
[358359830,1744989369236,1000.0,0.00048022,30]
[358359831,1744989369881,1000.0,0.00048022,30]
[358359832,1744989370495,1000.0,0.00048022,30]
[358359833,1744989371142,1000.0,0.00048022,30]
[358359834,1744989372011,1000.0,0.00048022,30]
[358359835,1744989372792,1000.0,0.00048022,30]
[358359836,1744989373653,827.72987865,0.00048022,30]
[358359870,1744989908387,26948.02922058,0.0002,2]
[358359871,1744989909255,-358.745309,0.0002,2]
[358359873,1744989931042,-191.26933503,0.000199,2]
[358359876,1744990010107,9979.82814119,0.00048051,30]
[358359877,1744990025882,250.0,0.00017,2]
[358359878,1744990026977,300.0,0.00019,2]
[358359880,1744990033264,-3605.99928272,0.000199,2]
[358359881,1744990033286,-500.0,0.00019973,2]
[358359882,1744990033323,-552.28063968,0.00019973,2]
[358359883,1744990033348,-234.66496411,0.00019973,2]
[358359885,1744990038140,-274.6074767,0.00019973,2]
[358359886,1744990038164,-152.25596605,0.00019973,2]
[358359887,1744990038189,-300.0,0.00019999,2]
[358359888,1744990038213,-183.92727904,0.00019999,2]
[358359889,1744990038238,-218.73293928,0.00019999,2]
[358359890,1744990038264,-259.30254097,0.00019999,2]
[358359891,1744990038306,-8965.43680908,0.0002,2]
[358359892,1744990050118,-959.61767424,0.0002,2]
[358359893,1744990053142,-593.50210559,0.0002,2]
[358359899,1744990126108,-702.77063118,0.000199,2]
[358359901,1744990126148,-219.78881494,0.000199,2]
[358359903,1744990126190,-804.69734318,0.000199,2]
[358359905,1744990126234,-160.93902893,0.000199,2]
[358359906,1744990126276,-2197.10542597,0.000199,2]
[358359908,1744990126321,-1861.60311596,0.000199,2]
[358359909,1744990126368,-4085.3012442,0.000199,2]
[358359910,1744990126417,-365.41755702,0.000199,2]
[358359911,1744990126458,-3719.88368718,0.000199,2]
[358359912,1744990126508,-4085.3012442,0.000199,2]
[358359913,1744990126558,-4085.3012442,0.000199,2]
[358359914,1744990126622,-4085.3012442,0.000199,2]
[358359916,1744990151063,-222.31295393,0.00019899,2]
[358359917,1744990159138,-77.68704607,0.00019899,2]
[358359918,1744990159160,-835.1949261,0.000199,2]
[358359919,1744990159183,-1328.1494451,0.000199,2]
[358359923,1744990202930,2000.0,0.0002,4]
[358359936,1744990232217,-219.44754316,0.000199,2]
[358359937,1744990232230,-250.0,0.00019936,2]
[358359938,1744990232241,-178.7355348,0.00019972,2]
[358359939,1744990232256,-121.2644652,0.00019972,2]
[358359940,1744990232269,-300.0,0.00019972,2]
[358359941,1744990232282,-300.0,0.00019972,2]
[358359942,1744990232295,-500.0,0.00019973,2]
[358359943,1744990232307,-151.34,0.0001999,2]
[358359944,1744990232320,-151.34,0.0001999,2]
[358359945,1744990232332,-151.34,0.0001999,2]
[358359946,1744990232346,-151.34,0.0001999,2]
[358359947,1744990232360,-151.34,0.0001999,2]
[358359948,1744990232372,-151.34,0.0001999,2]
[358359949,1744990232384,-151.34,0.0001999,2]
[358359950,1744990232398,-151.34,0.0001999,2]
[358359951,1744990232410,-151.34,0.0001999,2]
[358359952,1744990232425,-151.34,0.0001999,2]
[358359953,1744990232437,-178.20197515,0.0001999,2]
[358359954,1744990232449,-178.20197515,0.0001999,2]
[358359955,1744990232461,-500.0,0.00019999,2]
[358359956,1744990232473,-8667.53636086,0.0002,2]
[358359959,1744990232488,-2719.5216969,0.0002,2]
[358359961,1744990232505,-2339.071,0.0002,2]
[358359963,1744990232519,-4668.46184484,0.0002,2]
[358359966,1744990232532,-6766.66408197,0.0002,2]
[358359968,1744990232546,-42529.57653333,0.0002,2]
[358360048,1744990238788,-536.46489546,0.000199,2]
[358360050,1744990238799,-7692.48326834,0.0002,2]
[358360059,1744990240621,-488.24318651,0.0002,2]
[358360060,1744990240637,-363.06,0.0002,2]
[358360061,1744990240651,-1478.25,0.0002,2]
[358360062,1744990240665,-234941.805,0.0002,2]
[358360063,1744990240680,-180133.03217935,0.0002,2]
[358360064,1744990240803,-85149.02123333,0.0002,2]
[358360065,1744990240819,-4215.05265992,0.0002,2]
[358360086,1744990244097,-44.86704031,0.0002,2]
[358360088,1744990245814,-15403.15359115,0.0002,2]
[358360089,1744990246395,-4092.12395294,0.0002,2]
[358360090,1744990246407,-320.76038145,0.0002,2]
[358360091,1744990246419,-844.10050161,0.0002,2]
[358360092,1744990246487,-269.78,0.0002,2]
[358360102,1744990378061,-169.737325,0.000198,2]
[358360107,1744990512572,371.0,0.00032,60]
[358360112,1744990548250,4824.72083387,0.0004805,30]
[358360122,1744990632949,850.0,0.0004805,120]
[358360131,1744990790428,-300.0,0.00019899,2]
[358360132,1744990790450,-300.0,0.00019899,2]
[358360133,1744990790473,-300.0,0.00019899,2]
[358360134,1744990790495,-35037.56032116,0.000199,2]
[358360135,1744990790516,-15968.12299486,0.000199,2]
[358360136,1744990790537,-506.73518608,0.000199,2]
[358360137,1744990790559,-160.93902893,0.000199,2]
[358360138,1744990790581,-357.64326364,0.000199,2]
[358360139,1744990790602,-397.69704778,0.000199,2]
[358360140,1744990790623,-500.0,0.00019973,2]
[358360141,1744990790643,-165.39570455,0.00019973,2]
[358360142,1744990790664,-150.999999,0.00019973,2]
[358360143,1744990790686,-500.0,0.00019973,2]
[358360144,1744990790706,-500.0,0.00019973,2]
[358360145,1744990790728,-500.0,0.00019999,2]
[358360146,1744990790749,-500.0,0.00019999,2]
[358360147,1744990790771,-181.51177868,0.00019999,2]
[358360148,1744990790794,-153.1130575,0.00019999,2]
[358360149,1744990790837,-593520.28161782,0.0002,2]
[358360154,1744990978684,-300.0,0.00019899,2]
[358360155,1744990978710,-300.0,0.00019899,2]
[358360156,1744990978735,-5885.64149819,0.000199,2]
[358360157,1744990978758,-238.42884242,0.000199,2]
[358360158,1744990978781,-6818.05547125,0.000199,2]
[358360159,1744990978804,-8661.58351844,0.000199,2]
[358360160,1744990978828,-500.0,0.00019973,2]
[358360161,1744990978853,-500.0,0.00019973,2]
[358360162,1744990978877,-300.0,0.00019999,2]
[358360163,1744990978906,-500.0,0.00019999,2]
[358360164,1744990978931,-300.0,0.00019999,2]
[358360165,1744990978971,-15696.2906697,0.0002,2]
[358360260,1744991225120,-300.0,0.00019899,2]
[358360261,1744991225143,-300.0,0.00019899,2]
[358360262,1744991225180,-300.0,0.00019899,2]
[358360263,1744991225202,-158.95256162,0.000199,2]
[358360264,1744991225436,-4354.20381951,0.000199,2]
[358360265,1744991227143,-191.16649465,0.000199,2]
[358360266,1744991227165,-150.0,0.00019973,2]
[358360267,1744991227187,-500.0,0.00019973,2]
[358360268,1744991227209,-500.0,0.00019973,2]
[358360269,1744991227231,-617.60146143,0.00019973,2]
[358360270,1744991227253,-500.0,0.00019973,2]
[358360271,1744991227275,-418.8126353,0.00019999,2]
[358360272,1744991227297,-850.0,0.00019999,2]
[358360273,1744991227339,-6611.37453518,0.0002,2]
[358360274,1744991235221,-944.12147452,0.000199,2]
[358360275,1744991251079,-949.36602544,0.000199,2]
[358360276,1744991264905,150.0,0.00048047,30]
[358360281,1744991330170,-158.9525616,0.000199,2]
[358360282,1744991330197,-300.0,0.00019999,2]
[358360283,1744991330414,-425.0,0.00019999,2]
[358360284,1744991330456,-4482.86986186,0.00019999,2]
[358360285,1744991330500,-94633.17757654,0.0002,2]
[358360286,1744991336181,-3030.24687612,0.000199,2]
[358360287,1744991336223,-96969.75312388,0.0002,2]
[358360288,1744991340800,-100000.0,0.0002,2]
[358360289,1744991345432,-500.0,0.00019973,2]
[358360290,1744991345458,-300.0,0.00019999,2]
[358360291,1744991345504,-99200.0,0.0002,2]
[358360292,1744991350531,-500.0,0.00019973,2]
[358360293,1744991350576,-99500.0,0.0002,2]
[358360294,1744991356109,-500.0,0.00019999,2]
[358360295,1744991356328,-3663.39670781,0.0002,2]
[358360296,1744991362119,-5148.80462519,0.0002,2]
[358360297,1744991369300,161.34405587,0.0002,23]
[358360392,1744991384806,500.0,0.00048047,30]
[358360393,1744991396242,-5143.2265123,0.000199,2]
[358360394,1744991396287,-34856.7734877,0.0002,2]
[358360395,1744991402051,2000.0,0.0002,4]
[358360396,1744991420122,-158.9525616,0.000199,2]
[358360397,1744991420150,-947.93627734,0.0001998,2]
[358360398,1744991420175,-300.0,0.00019999,2]
[358360399,1744991420200,-300.0,0.00019999,2]
[358360400,1744991420246,-198293.11116106,0.0002,2]
[358360401,1744991422948,-200000.0,0.0002,2]
[358360402,1744991423954,330.86,0.00048047,30]
[358360405,1744991431637,-675.93652626,0.0002,2]
[358360406,1744991431649,-2149.35852899,0.0002,2]
[358360407,1744991431661,-261.37563959,0.0002,2]
[358360408,1744991431672,-1372.65758095,0.0002,2]
[358360409,1744991431884,-60480.39000992,0.0002,2]
[358360412,1744991431896,-127157.55911366,0.0002,2]
[358360414,1744991431907,-42830.5,0.0002,2]
[358360536,1744991438007,-174.46340743,0.00019999,2]
[358360537,1744991438018,-637.88839384,0.0002,2]
[358360538,1744991438029,-3684.2846468,0.0002,2]
[358360539,1744991438045,-440.37001815,0.0002,2]
[358360540,1744991438215,-0.61003901,0.0002,2]
[358360541,1744991438226,-3982.62751325,0.0002,2]
[358360542,1744991438238,-434.23999783,0.0002,2]
[358360543,1744991438249,-9599.02401627,0.0002,2]
[358360562,1744991439893,-5648.34206596,0.0002,2]
[358360563,1744991439904,-4939.780016,0.0002,2]
[358360564,1744991439916,-3070.5981233,0.0002,2]
[358360565,1744991440419,-1244.5040811,0.0002,2]
[358360566,1744991440433,-142598.892,0.0002,2]
[358360567,1744991440447,-6796.93269118,0.0002,2]
[358360568,1744991440459,-1264.5793086,0.0002,2]
[358360569,1744991440475,-218321.58771857,0.0002,2]
[358360570,1744991440487,-2403673.8645546,0.0002,2]
[358360571,1744991440498,-273517.09248271,0.0002,2]
[358360580,1744991442573,-2266.72459684,0.0002,2]
[358360581,1744991442729,-20010.34549357,0.0002,2]
[358360613,1744991444547,-307733.21110715,0.0002,2]
[358360615,1744991445578,-13026.07112764,0.0002,2]
[358360616,1744991445763,-200772.09080859,0.0002,2]
[358360617,1744991445775,-1598.21306992,0.0002,2]
[358360618,1744991445830,-2923.96263016,0.0002,2]
[358360619,1744991445842,-2534.32489379,0.0002,2]
[358360620,1744991445854,-331.93718938,0.0002,2]
[358360624,1744991657251,1525.93579401,0.00048047,120]
[358360625,1744991704066,151.15,0.00048047,30]
[358360626,1744991830479,250.0,0.00017,2]
[358360627,1744991831549,300.0,0.00019,2]
[358360628,1744991853119,-192.45795073,0.000198,2]
[358360630,1744991912049,-160.52535,0.000196,2]
[358360631,1744992005597,-214.85753708,0.000196,2]
[358360635,1744992064682,-329.48481123,0.000195,2]
[358360637,1744992134881,200.0,0.00047975,120]
[358360638,1744992136141,207.4,0.00047975,120]
[358360639,1744992136770,215.0738,0.00047975,120]
[358360640,1744992137628,223.0315306,0.00047975,120]
[358360641,1744992138268,231.28369723,0.00047975,120]
[358360642,1744992139322,239.84119403,0.00047975,120]
[358360643,1744992140367,248.71531821,0.00047975,120]
[358360644,1744992140997,257.91778498,0.00047975,120]
[358360645,1744992141650,267.46074303,0.00047975,120]
[358360646,1744992142275,277.35679052,0.00047975,120]
[358360647,1744992142914,287.61899177,0.00047975,120]
[358360648,1744992143624,298.26089446,0.00047975,120]
[358360649,1744992144794,309.29654756,0.00047975,120]
[358360650,1744992145474,309.29654756,0.00047975,120]
[358360657,1744992330885,-269.1254,0.000194,2]
[358360658,1744992353389,-408.42573,0.00019302,2]
[358360659,1744992362208,-194.88734647,0.00019302,2]